[Event "Polish Youth B18 Championship 2023"]
[Site "Jastrzebia Gora"]
[Date "2023.03.16"]
[Round "6.4"]
[White "Luberanski, Jakub"]
[Black "Kaliszuk, Kamil"]
[Result "1/2-1/2"]
[ECO "D53"]
[WhiteElo "2242"]
[BlackElo "2217"]
[Annotator "TA"]
[PlyCount "102"]
[EventDate "2023.03.11"]
[EventType "swiss"]
[EventCountry "POL"]
[SourceTitle "playchess.com"]
[Source "ChessBase"]
[SourceQuality "1"]
[TimeControl "40/5400+30:1800+30"]

{[%evp 18,102,14,0,13,15,18,8,14,0,0,0,22,20,24,20,30,5,31,0,69,31,75,69,70,68,60,38,38,32,32,0,0,0,0,0,0,0,21,-20,5,-903,0,0,0,0,0,0,11,12,11,7,56,41,31,21,22,24,39,9,70,70,133,139,162,70,62,75,71,0,0,0,4,6,8,0,11,0,25,-236,0,0,26,-236,0,0,58]} 1. d4 {[%emt 0:00:03]} d5 {[%emt 0:00:50]} 2. c4 {[%emt 0:00:03]} e6 {[%emt 0:00:11]} 3. Nc3 {[%emt 0:00:03]} Nf6 {[%emt 0:00:10]} 4. Bg5 {[%emt 0:00:06]} Be7 {[%emt 0:01:01]} 5. Nf3 {[%emt 0:00:05]} O-O {[%emt 0:01:07]} 6. Qc2 {[%emt 0:00:03]} b6 {[%emt 0:19:31]} 7. cxd5 {[%emt 0:03:31]} Nxd5 {[%emt 0:10:45]} 8. Bxe7 {[%emt 0:09:06]} Qxe7 {[%emt 0:02:35]} 9. Nxd5 {[%emt 0:03:17]} exd5 {[%emt 0:00:17]} 10. e3 {[%emt 0:00:03]} (10. Rc1 $5 {[%cal Rc2c7]}) 10... Be6 {[%emt 0:05:52] D55: Queen's Gambit Declined: 4 Bg5 Be7: Lines without ...h6 and 6...h6 7 Bxf6.} 11. Bd3 {[%emt 0:00:08]} h6 {[%emt 0:00:28]} 12. O-O {[%emt 0:05:39]} c5 {[%emt 0:07:07]} 13. dxc5 {[%emt 0:01:52]} bxc5 {[%emt 0:02:59] [#]} 14. e4 $146 {[%emt 0:02:57]} ({Predecessor:} 14. Rac1 Nd7 15. Qa4 Rfb8 16. Qa3 Qf6 17. b3 a5 18. Qa4 Rb4 19. Qc6 Rab8 20. Qc7 R4b6 21. Rfd1 g6 22. Rd2 R8b7 23. Qc8+ {1-0 Kormann,W (2169)-Teuschler,H (2031) Steyr Landesliga 1213 2012 (6.5)}) 14... Nd7 {[%emt 0:07:23]} (14... c4 $5 15. Be2 $8 Nc6 $11) 15. exd5 {[%emt 0:06:07]} Bxd5 {[%emt 0:00:07]} 16. Rfe1 {[%emt 0:01:00]} Qf6 {[%emt 0:01:00]} 17. Nd2 {[%emt 0:01:18][%cal Bf3d2,Bd2e4,Be4g3,Bg3f5][%mdl 32]} Qc6 {[%emt 0:07:09]} 18. Ne4 {[%emt 0:09:53]} Ne5 {[%emt 0:05:09]} (18... Rfe8 $11 19. Nc3 Bxg2) 19. Bf1 $1 $14 {[%emt 0:07:35]} Qg6 {[%emt 0:01:52]} 20. Qc3 {[%emt 0:01:07] Dodges Nf3+} Rfe8 {[%emt 0:06:03]} 21. Ng3 {[%emt 0:00:45]} Nd7 {[%emt 0:01:00]} 22. Bb5 {[%emt 0:08:05]} (22. b3 {simplifies} Rxe1 23. Rxe1 Rc8 24. Qd2) 22... Bc6 {[%emt 0:01:46]} 23. Bd3 {[%emt 0:02:01]} (23. Bxc6 {simplifies} Qxc6 24. Nf5 Qf6 25. Qxf6 Nxf6 26. Kf1) 23... Qg5 {[%emt 0:03:13]} 24. h4 {[%emt 0:02:26]} Qxh4 {[%emt 0:02:53]} 25. Qxg7+ {[%emt 0:00:45][%mdl 64] Decoy} Kxg7 {[%emt 0:00:07]} 26. Nf5+ {[%emt 0:00:02]} Kf6 {[%emt 0:01:05]} 27. Nxh4 {[%emt 0:00:05]} Re5 28. Re2 Rxe2 {[%emt 0:02:34]} (28... Rh5 {looks sharper.} 29. Be4 Re8 30. Bxc6 Rxe2 31. Bf3 Rhe5) 29. Rb1 {[%mdl 8192] [#]} (29. Bxe2 $11 Re8 30. Kf1) 29... Re1+ $2 30. Rxe1 $11 {[%emt 0:02:17]} Ne5 {[%emt 0:00:32]} 31. Bf1 {[%emt 0:01:35]} Bd5 {[%emt 0:02:29]} 32. b3 {[%emt 0:01:38]} Rc8 {[%emt 0:01:52]} 33. Rd1 {[%emt 0:01:49]} Be6 {[%emt 0:01:18]} 34. f4 {[%emt 0:00:49]} Ng6 {[%emt 0:01:56]} (34... Ng4 $11 {is superior.}) 35. Nxg6 $14 {[%emt 0:01:03]} Kxg6 {[%emt 0:03:30][%mdl 4096] Endgame KRB-KRB} 36. Rc1 {[%emt 0:06:26]} Kf6 {[%emt 0:00:46]} 37. Kf2 {[%emt 0:00:04]} a5 {[%emt 0:00:39]} 38. Ke3 {[%emt 0:01:31]} a4 {[%emt 0:00:46]} 39. bxa4 {[%emt 0:01:43][%cal Bb3a4,Ba4a5][%mdl 32]} Bxa2 {[%emt 0:00:09]} (39... h5 $14) 40. a5 $16 {[%emt 0:00:52]} Ke6 {[%emt 0:01:17]} 41. Be2 {[%emt 0:30:19]} (41. a6 $18) 41... Bd5 $14 {[%emt 0:30:25]} 42. g4 {[%emt 0:00:00]} Kd6 {[%emt 0:00:00]} 43. Rb1 {[%emt 0:00:00]} (43. a6 $16) 43... Re8+ $11 {[%emt 0:00:00]} 44. Kd2 {[%emt 0:00:00]} c4 {[%emt 0:00:00][%cal Oc4c3]} 45. Bd1 {[%emt 0:00:00]} Kc5 {[%emt 0:00:00] Wards off Rb5+} 46. Ra1 {[%emt 0:00:00]} Kd4 {[%emt 0:00:00]} 47. Ra3 {[%emt 0:00:00]} Rc8 {[%emt 0:00:00]} 48. Rc3 $2 {[%emt 0:00:00][%mdl 8192] [#]} (48. a6 $11) 48... Rc5 $2 {[%emt 0:00:00]} (48... Rb8 $1 $19 {[%cal Rb8b2] And now ...Rb2+ would win.} 49. Ra3 Rb1) 49. Ra3 {[%emt 0:00:00]} Rc8 {[%emt 0:00:00]} 50. Rc3 $2 {[%emt 0:00:00][%mdl 8192] [#]} (50. a6 $11 {and White has nothing to worry.}) 50... Kc5 $2 {[%emt 0:00:00]} ({Black should play} 50... Rb8 $1 $19 {[%cal Rb8b2] Hoping for ...Rb2+.} 51. Rg3 Be4) 51. Ra3 {[%emt 0:00:00]} Kd4 {[%emt 0:00:00] What a bad dream for Black. A fantastic game!   Weighted Error Value: White=0.43/Black=0.36} ({Better is} 51... Rd8 $11 52. Ke1 Ra8) 1/2-1/2

[Event "Polish Youth B18 Championship 2023"]
[Site "Jastrzebia Gora"]
[Date "2023.03.16"]
[Round "6.5"]
[White "Turski, Bartlomiej"]
[Black "Ciszewski, Krzysztof"]
[Result "0-1"]
[ECO "A05"]
[WhiteElo "2352"]
[BlackElo "2047"]
[Annotator "TA"]
[PlyCount "116"]
[EventDate "2023.03.11"]
[EventType "swiss"]
[EventCountry "POL"]
[SourceTitle "playchess.com"]
[Source "ChessBase"]
[SourceQuality "1"]
[TimeControl "40/5400+30:1800+30"]

{[%evp 22,116,55,44,46,47,37,45,52,7,63,29,45,44,44,43,27,24,38,0,10,-134,-136,-116,-128,-127,-99,-85,-91,-95,-89,-86,-21,-93,-97,-102,-104,-184,-187,-169,-157,-347,-343,-828,-812,-758,-754,-666,-533,-452,-414,-1331,-1286,-1459,-1419,-1274,-817,-29981,-569,-537,0,0,0,-562,-548,-537,-517,-610,-277,-275,-270,-270,-254,-199,-195,-988,-958,-1919,-1096,-5490,-2843,-29976,-29978,-29978,-29979,-29978,-29979,-29981,-29980,-29982,-29983,-29983,-29984,-29984,-29985,-29985,-29986]} 1. Nf3 {[%emt 0:00:03]} Nf6 {[%emt 0:01:12]} 2. c4 {[%emt 0:00:03]} g6 {[%emt 0:01:48]} 3. Nc3 {[%emt 0:00:48]} Bg7 {[%emt 0:00:11]} 4. e4 {[%emt 0:00:07]} d6 {[%emt 0:00:17]} 5. d4 {[%emt 0:00:07][%cal Bd2d4,Bd4d5][%mdl 32]} O-O {[%emt 0:00:08]} 6. h3 {[%emt 0:00:04]} e5 {[%emt 0:01:00]} 7. d5 {[%emt 0:00:09]} a5 {[%emt 0:02:26]} 8. Be3 {[%emt 0:00:09]} Na6 {[%emt 0:00:14]} 9. g4 {[%emt 0:00:12]} Nc5 {[%emt 0:00:18]} 10. Nd2 {[%emt 0:00:13]} c6 $1 {[%emt 0:03:48] 10...c6 scores better than 10...Ne8.} 11. Be2 {[%emt 0:01:46]} cxd5 {[%emt 0:00:56]} 12. cxd5 {[%emt 0:00:18]} Bd7 {[%emt 0:01:05] E92: King's Indian: Classical: 6 Be2 e5: 7 dxe5, 7 Be3 and Petrosian System without 7...Nbd7.} 13. g5 {[%emt 0:00:09]} Ne8 {[%emt 0:00:34]} 14. h4 {[%emt 0:00:29]} a4 {[%emt 0:07:33] White is slightly better.} 15. a3 {[%emt 0:07:14]} Qa5 {[%emt 0:20:55]} (15... f6 $11) 16. h5 {[%emt 0:21:16]} b5 {[%emt 0:01:21] [#]} 17. hxg6 $146 {[%emt 0:03:40]} ({Predecessor:} 17. Kf1 Nc7 18. Rh2 Rfc8 19. Kg2 Ne8 20. Qh1 Nb3 21. Nxb3 axb3 22. Rc1 b4 23. axb4 Qxb4 24. hxg6 hxg6 {1-0 Baron,T (2553)-Larrea,M (2279) Olympiad-42 Baku 2016 (2.4)}) 17... fxg6 {[%emt 0:00:13]} 18. Kf1 {[%emt 0:15:18]} Rf7 {[%emt 0:03:45]} 19. Kg2 {[%emt 0:05:16]} Rb8 {[%emt 0:07:44]} 20. Qc2 {[%emt 0:06:37]} Qd8 {[%emt 0:12:00]} 21. f3 {[%emt 0:16:51] [#]} (21. Rh2 $11 {keeps the balance.}) 21... Rf4 $1 $17 {[%emt 0:07:21][%mdl 512]} 22. Kf2 {[%emt 0:10:13]} Qxg5 {[%emt 0:01:22][%cal Og7h6]} 23. Rag1 {[%emt 0:03:58]} Qe7 {[%emt 0:00:47][%cal Oe8f6]} (23... Qf6 24. b4 axb3 25. Nxb3 $15) 24. b4 {[%emt 0:01:51]} axb3 {[%emt 0:02:08]} 25. Nxb3 {[%emt 0:00:07] [#]} Nxb3 $1 {[%emt 0:02:04]} 26. Qxb3 {[%emt 0:00:11] [#]} (26. Bxf4 $2 Nd4 27. Bg5 Qxg5 28. Rxg5 Nxc2 $19) 26... Nc7 {[%emt 0:05:22]} 27. Na2 {[%emt 0:04:32] [#]} (27. a4 $1 $11 {remains equal.}) 27... Na6 $1 {[%emt 0:02:00][%cal Oe7f7]} 28. Nb4 {[%emt 0:00:50] [#]} Nxb4 {[%emt 0:03:51]} (28... Nc5 $6 29. Bxc5 dxc5 30. d6+ (30. Nc6 Bxc6 31. dxc6+ Kh8 $17) 30... Qf7 31. Qxf7+ (31. Nd5 Be6 $17) 31... Rxf7 32. Na6 $11) 29. Bxf4 {[%emt 0:01:01]} (29. axb4 $17 {might work better.} Rff8 30. Ra1) 29... exf4 $19 {[%emt 0:00:08]} 30. Qxb4 {[%emt 0:00:03]} (30. axb4 $2 Bd4+ 31. Ke1 Bxg1 32. Rxg1 Qf6 $19) 30... Rc8 {[%emt 0:00:37] aiming for ...Bc3.} 31. Bd3 $2 {[%emt 0:01:41]} (31. Bxb5 Bxb5 32. Qxb5 Bd4+ 33. Kf1 Bxg1 34. Rxg1 Rc1+ 35. Ke2 Rxg1 $19) (31. Qd2 $17 {only move.}) 31... Bc3 {[%emt 0:05:38]} 32. Qb3 {[%emt 0:00:12]} (32. Qb1 Ra8 33. Bxb5 Bxb5 34. Qxb5 Bd4+ 35. Kf1) 32... Bd4+ {[%emt 0:00:15] This pair of bishops is nice.} 33. Ke2 {[%emt 0:00:40] White is weak on the dark squares} Bxg1 {[%emt 0:00:12]} (33... Rc3 34. Qb4 Bxg1 35. Qxc3 $17) 34. Rxg1 {[%emt 0:00:01]} Qh4 {[%emt 0:00:19]} 35. Rf1 {[%emt 0:00:52]} Qh2+ {[%emt 0:01:24]} 36. Kd1 {[%emt 0:00:56]} (36. Rf2 $142 Qg1 37. Qd1 Qxd1+ 38. Kxd1) 36... Bh3 {[%emt 0:03:00]} 37. Re1 {[%emt 0:00:02]} Qf2 {[%emt 0:00:53]} 38. e5 {[%emt 0:00:41]} Qd4 {[%emt 0:02:00] ( -> ...Bf5)} 39. Kd2 {[%emt 0:00:46]} dxe5 {[%emt 0:01:44]} (39... Bf5 $142 40. Re2 dxe5 41. d6+ Kg7 42. d7 Rc5 43. a4 bxa4 44. Qa3 Bxd3 45. d8=Q Rc2+ 46. Kd1 Bxe2+ 47. Kxc2 Qxd8 48. Qc5 Qd3+ 49. Kc1 Qd1+ 50. Kb2 Qd4+ 51. Qxd4 exd4 52. Kc2 d3+ 53. Kd2 a3 54. Kc3 a2 55. Kb2 d2 56. Kxa2 d1=Q 57. Kb2 Qd2+ 58. Kb3 Ba6 59. Ka3 Bc4 60. Ka4 Qb2 61. Ka5 Qb5#) 40. Re4 {[%emt 0:00:00]} Qa1 {[%emt 0:00:00] White must now prevent ...Qc1+.} 41. Re1 {[%emt 0:05:41] Prevents Qc1+} Qd4 {[%emt 0:01:26] ...Bf5 would be deadly.} 42. Re4 $1 {[%emt 0:04:36] Black keeps a firm grip on the game.} Qf2+ {[%emt 0:14:54]} 43. Re2 {[%emt 0:07:25]} Qc5 {[%emt 0:01:25][%csl Gc8][%cal Rc5c1]} 44. d6+ {[%emt 0:07:17]} Kf8 {[%emt 0:04:07]} (44... Kg7 $142 {[%csl Gc8][%cal Rc5c1]} 45. Re1 Qxd6) 45. Qb2 {[%emt 0:01:54] Against Qc1+} Qxd6 {[%emt 0:00:21]} (45... Bf1 46. d7 Bxe2 47. dxc8=Q+ Qxc8 48. Qxe5 $18 (48. Bxe2 Qd8+ 49. Bd3 Qd5 $16) (48. Kxe2 Qc5 $18)) 46. Qxe5 {[%emt 0:04:50]} Qxe5 {[%emt 0:03:31]} (46... Qxa3 {gets mated.} 47. Qh8+ (47. Bxb5 {is a self mate.} Qc1+ 48. Kd3 Bf5+) 47... Kf7 48. Qxh7+ Kf8 49. Qh6+ Kg8 50. Qxg6+ (50. Qxh3 $2 Qc1#) 50... Kf8 51. Qh6+ (51. Bxb5 $2 Qc3+ 52. Kd1 Qc1#) 51... Kg8 52. Bh7+ (52. Qxh3 $2 Qc1#) 52... Kh8 53. Bg6+ (53. Qxh3 $2 Qc3+ 54. Kd1 Qc1#) 53... Kg8 54. Qh7+ Kf8 55. Qh8#) 47. Rxe5 {[%emt 0:00:01][%mdl 4096] Endgame KRB-KRB} Ra8 {[%emt 0:02:31]} 48. Re4 $2 {[%emt 0:02:41]} (48. Rxb5 Rxa3 49. Rb8+ Kg7 50. Rb7+ Kh6 51. Rf7) 48... Rd8 {[%emt 0:02:36]} (48... Rxa3 $2 {too greedy.} 49. Rxf4+ Kg7 50. Rd4 $19) 49. Kc2 {[%emt 0:00:37]} Bf5 {[%emt 0:00:48] And now ...Rxd3 would win.} 50. Rxf4 {[%emt 0:00:06]} Rxd3 {[%emt 0:00:35]} 51. Rxf5+ {[%emt 0:00:01]} gxf5 {[%emt 0:00:01] Black mates.} 52. Kxd3 {[%emt 0:00:01] K3P-KPP} Ke7 {[%emt 0:00:14]} 53. Ke3 {[%emt 0:00:15]} Ke6 {[%emt 0:00:11]} 54. Kf4 {[%emt 0:00:08]} h6 {[%emt 0:00:05][%cal Bh7h6,Bh6h5,Bh5h4][%mdl 32]} 55. Kg3 {[%emt 0:00:14]} Ke5 {[%emt 0:00:05]} 56. Kg2 {[%emt 0:00:45]} Kf4 {[%emt 0:00:07]} 57. Kf2 {[%emt 0:00:04]} h5 {[%emt 0:00:04]} 58. Kg2 {[%emt 0:00:04]} h4 {[%emt 0:00:04] An exciting game.   Weighted Error Value: White=0.95/Black=0.81} 0-1

[Event "Polish Youth B18 Championship 2023"]
[Site "Jastrzebia Gora"]
[Date "2023.03.16"]
[Round "6.6"]
[White "Kolodziejski, Piotr"]
[Black "Karolczuk, Iwo"]
[Result "0-1"]
[ECO "B90"]
[WhiteElo "2118"]
[BlackElo "2346"]
[Annotator "TA"]
[PlyCount "90"]
[EventDate "2023.03.11"]
[EventType "swiss"]
[EventCountry "POL"]
[SourceTitle "playchess.com"]
[Source "ChessBase"]
[SourceQuality "1"]
[TimeControl "40/5400+30:1800+30"]

{[%evp 15,90,-8,-10,-13,-10,-46,-27,-43,-51,-93,-90,-135,-112,-151,-152,-163,-151,-197,-191,-181,-118,-153,-140,-150,-110,-223,-158,-169,-135,-139,-145,-164,-133,-148,-153,-153,-157,-153,-151,-182,-186,-212,-210,-200,-177,-214,-212,-212,-212,-512,-491,-495,-481,-493,-483,-495,-496,-477,-405,-29963,-29964,-29962,-12777,-29947,-11635,-5712,-5432,-5432,-4933,-2012,-891,-29973,-29974,-29974,-29975,-29970,-29972]} 1. e4 {[%emt 0:00:02]} c5 {[%emt 0:00:09]} 2. Nf3 {[%emt 0:00:04]} d6 {[%emt 0:00:13]} 3. d4 {[%emt 0:00:04]} cxd4 {[%emt 0:00:06]} 4. Nxd4 {[%emt 0:00:03]} Nf6 {[%emt 0:00:10]} 5. Nc3 {[%emt 0:00:04]} a6 {[%emt 0:00:09]} 6. Bc4 {[%emt 0:00:10]} e6 {[%emt 0:00:10]} 7. Bb3 {[%emt 0:00:06]} Nbd7 {[%emt 0:00:14]} 8. Bg5 {[%emt 0:00:33]} Nc5 {[%emt 0:01:25] 8...Qa5 is vanishing.} 9. f3 {[%emt 0:09:58] B86: Sicilian Scheveningen/Najdorf: 6 Bc4, without early ...b5.} Be7 {[%emt 0:03:08]} 10. h4 Qc7 {[%emt 0:02:12]} 11. Qd2 {[%emt 0:10:46] Black has an edge.} b5 {[%emt 0:09:46][%cal Bb7b5,Bb5b4][%mdl 32] [#]} 12. a4 $146 {[%emt 0:11:25]} ({Predecessor:} 12. O-O-O b4 13. Na4 Bd7 14. Qxb4 Rb8 15. Qc3 O-O 16. Nxc5 dxc5 17. e5 Nd5 18. Bxd5 Bxg5+ 19. hxg5 exd5 {½-½ Inoue,T-Nanjo,R (2324) JPN-ch 52nd Tokyo 2019 (1)}) 12... b4 {[%emt 0:09:01]} 13. Nd1 {[%emt 0:00:46]} O-O {[%emt 0:15:50]} 14. O-O {[%emt 0:11:47]} h6 {[%emt 0:02:12]} 15. Be3 {[%emt 0:01:00] [#]} e5 $1 {[%emt 0:01:43]} 16. Ne2 {[%emt 0:03:54]} (16. Nf5 $17 Bxf5 17. exf5) 16... Nxb3 $19 {[%emt 0:08:01]} 17. cxb3 {[%emt 0:00:07]} a5 {[%emt 0:06:01]} ({Black should try} 17... d5 $19 18. exd5 Rd8) 18. Rc1 {[%emt 0:11:53]} Qb7 {[%emt 0:00:18]} 19. Bf2 {[%emt 0:04:47]} Be6 {[%emt 0:03:36]} 20. Qd3 {[%emt 0:02:22]} (20. Ne3 $17) 20... Nd7 {[%emt 0:08:52][%cal Bf6d7,Bd7e5,Be5g4,Bg4f2][%mdl 32]} 21. f4 {[%emt 0:06:07] Threatens to win with f5.} exf4 {[%emt 0:01:14]} 22. Nxf4 {[%emt 0:03:24]} Ne5 {[%emt 0:00:08]} 23. Qe3 {[%emt 0:06:56]} Ng4 {[%emt 0:03:04]} 24. Qd3 {[%emt 0:01:35]} Nxf2 {[%emt 0:01:49]} 25. Rxf2 {[%emt 0:00:21]} Bxh4 {[%emt 0:00:29]} 26. g3 {[%emt 0:01:24]} Bg5 {[%emt 0:04:54] A strong pair of Bishops.} 27. Ne3 {[%emt 0:00:13]} Rfe8 {[%emt 0:01:23]} 28. Rcf1 {[%emt 0:03:33]} Bxf4 {[%emt 0:01:35]} 29. Rxf4 {[%emt 0:00:20]} Qb6 {[%emt 0:03:06]} 30. Kh2 {[%emt 0:01:09]} Rac8 {[%emt 0:00:47][%cal Ba8c8,Bc8c5,Bc5c2][%mdl 32]} 31. Nf5 {[%emt 0:03:20]} Rc5 {[%emt 0:05:30]} 32. Qxd6 $2 {[%emt 0:04:07]} (32. R1f2) 32... Rc2+ {[%emt 0:01:13]} 33. Kh1 {[%emt 0:00:08]} Qxd6 {[%emt 0:01:05]} 34. Nxd6 {[%emt 0:00:06]} Rd8 {[%emt 0:00:04]} 35. Nc4 {[%emt 0:03:03]} Bxc4 {[%emt 0:01:45]} 36. bxc4 {[%emt 0:00:05][%mdl 4096] Endgame KRR-KRR} Rdd2 {[%emt 0:00:11] Wards off R1f2. ( -> ...Rh2+)} ({Worse is} 36... Rxc4 37. Rxf7 Rxe4 38. R7f4 $17) 37. R1f3 {[%emt 0:02:32] [#]} (37. Rb1 $19 Rxb2 38. Rxb2 Rxb2 39. Rf5) 37... Rh2+ {[%emt 0:01:17]} 38. Kg1 {[%emt 0:00:03]} Rcg2+ {[%emt 0:00:10]} 39. Kf1 {[%emt 0:00:05]} Rxb2 {[%emt 0:00:08][%cal Rh2h1]} 40. Kg1 {[%emt 0:00:00]} Rbg2+ {[%emt 0:00:00]} 41. Kf1 {[%emt 0:00:34]} Rc2 {[%emt 0:01:49][%cal Rc2c1]} 42. Kg1 {[%emt 0:00:18]} Rhd2 {[%emt 0:02:03]} (42... Rhg2+ $142 43. Kh1 Rge2) 43. Rxf7 {[%emt 0:09:42]} Rd1+ {[%emt 0:00:43] Black mates.} 44. Rf1 {[%emt 0:00:06]} Rxf1+ {[%emt 0:00:12]} 45. Rxf1 {[%emt 0:00:05]} b3 {[%emt 0:02:10] Weighted Error Value: White=0.65/Black=0.26 (precise)} 0-1

[Event "Polish Youth B18 Championship 2023"]
[Site "Jastrzebia Gora"]
[Date "2023.03.16"]
[Round "6.7"]
[White "Wojdak, Jan"]
[Black "Zdybel, Przemyslaw"]
[Result "1-0"]
[ECO "C77"]
[WhiteElo "2097"]
[BlackElo "2268"]
[Annotator "TA"]
[PlyCount "67"]
[EventDate "2023.03.11"]
[EventType "swiss"]
[EventCountry "POL"]
[SourceTitle "playchess.com"]
[Source "ChessBase"]
[SourceQuality "1"]
[TimeControl "40/5400+30:1800+30"]

{[%evp 13,67,0,2,0,8,5,7,11,10,-4,0,0,0,-45,-20,-8,7,-22,27,-21,19,0,59,31,93,96,122,129,117,107,119,89,162,120,127,129,328,309,423,399,394,343,480,453,480,477,477,478,446,400,527,529,527,541,509,433]} 1. e4 {[%emt 0:00:13]} e5 {[%emt 0:00:31]} 2. Nf3 {[%emt 0:00:34]} Nc6 {[%emt 0:00:05]} 3. Bb5 {[%emt 0:02:47][%cal Bf1b5,Bb5a4,Ba4b3,Bb3a2][%mdl 32]} a6 {[%emt 0:00:05]} 4. Ba4 {[%emt 0:01:07]} Nf6 {[%emt 0:00:09]} 5. Nc3 {[%emt 0:02:09]} b5 {[%emt 0:13:20]} 6. Bb3 {[%emt 0:00:05]} Be7 {[%emt 0:00:14]} 7. d3 {[%emt 0:01:22]} d6 {[%emt 0:01:41]} 8. a3 {[%emt 0:00:05] C77: Ruy Lopez: 3...a6 4 Ba4 Nf6, unusual lines.} O-O {[%emt 0:04:25]} 9. h3 {[%emt 0:02:08]} Na5 {[%emt 0:05:29]} 10. Ba2 {[%emt 0:00:06] The position is equal.} c5 {[%emt 0:00:49]} 11. Nd5 {[%emt 0:03:46]} Nxd5 {[%emt 0:03:21]} 12. Bxd5 {[%emt 0:01:29] [#]} Bb7 $146 {[%emt 0:00:12]} ({Predecessor:} 12... Rb8 13. b4 Nb7 14. O-O Qc7 15. Bg5 Nd8 16. Be3 Ne6 17. Rc1 Bd7 18. c4 Rbd8 {0-1 Fernandez Martin,M-Burriel Lahos,I ESP-ch Seniors 2004 (6)}) 13. c4 {[%emt 0:20:34]} Bxd5 {[%emt 0:25:04]} (13... bxc4 $5 {[%cal Rb7d5]} 14. Bxb7 Nxb7 $15) 14. cxd5 {[%emt 0:00:06]} f5 {[%emt 0:00:57]} 15. O-O {[%emt 0:11:53]} Rc8 {[%emt 0:07:56]} (15... fxe4 $142 16. dxe4 c4) 16. Bd2 {[%emt 0:13:06]} (16. exf5 {is superior.} c4 17. dxc4) 16... Nb7 {[%emt 0:00:21]} 17. a4 {[%emt 0:03:55]} c4 {[%emt 0:04:44]} ({Better is} 17... b4 $11) 18. axb5 {[%emt 0:02:06]} (18. exf5 {keeps more tension.} Qd7 19. axb5 Qxb5 20. Bg5) 18... axb5 {[%emt 0:00:15] [#]} (18... fxe4 $1 $14 19. dxe4 (19. bxa6 exf3 20. axb7 Rb8 $11) 19... axb5) 19. exf5 $1 $16 {[%emt 0:06:44]} Rxf5 {[%emt 0:05:33]} 20. dxc4 {[%emt 0:03:14]} bxc4 {[%emt 0:00:07]} 21. Be3 {[%emt 0:01:10]} Nc5 {[%emt 0:01:23] Repels Qa4} 22. Nd2 {[%emt 0:04:08][%cal Bf3d2,Bd2e4,Be4g3][%mdl 32]} Nd7 {[%emt 0:02:51]} (22... Bg5 $16 {was necessary.}) 23. Qg4 {[%emt 0:01:24]} g6 {[%emt 0:00:25]} 24. Ne4 {[%emt 0:01:31] White is more active.} ({Don't take} 24. Nxc4 Nf6 25. Qe2 (25. Bb6 Qd7 $15) 25... Nxd5 $14) 24... Nf8 $2 {[%emt 0:04:51] A mistake that costs the game.} (24... Nf6 $16 25. Nxf6+ Bxf6) 25. Rfc1 $18 {[%emt 0:01:02]} Ra8 {[%emt 0:00:10]} 26. Ng3 {[%emt 0:00:32]} Rf7 {[%emt 0:00:43]} 27. Qxc4 {[%emt 0:00:15]} Rxa1 {[%emt 0:01:36]} 28. Rxa1 {[%emt 0:00:03]} Bg5 {[%emt 0:00:05]} 29. Bxg5 {[%emt 0:03:30]} Qxg5 {[%emt 0:00:02]} 30. Ne4 {[%emt 0:01:08][%csl LRd6,LRg5] Inhibits Qd2.} Qf4 {[%emt 0:00:21]} 31. Qe2 {[%emt 0:00:13]} ({Weaker is} 31. Nxd6 Qxf2+ 32. Kh2 (32. Kh1 Qxb2 33. Rf1 Rf2 $14) 32... Qf4+ 33. Qxf4 Rxf4 $18) 31... Rc7 {[%emt 0:00:47]} 32. Nxd6 {[%emt 0:02:15] White is clearly winning.} Rc1+ {[%emt 0:00:28]} 33. Rxc1 {[%emt 0:00:04][%mdl 64] [#] Overworked Piece} Qxc1+ {[%emt 0:00:02]} 34. Kh2 {[%emt 0:00:51] Weighted Error Value: White=0.18 (very precise) /Black=0.41} 1-0